bitfinex/quotes_ETHUSD_20250222
["timestamp","ask_amount","ask_price","bid_price","bid_amount"]
[1740232094249,0.8071,2730.9,2730.4,9.77554]
[1740232094747,0.8071,2730.9,2730.4,5.32]
[1740232094748,3.66225,2730.6,2730.4,5.32]
[1740232094940,0.8319,2730.6,2730.4,5.32]
[1740232095137,0.8319,2730.6,2730.4,8.98246]
[1740232095338,3.46021927,2730.9,2730.5,0.898246]
[1740232095544,3.46021927,2730.9,2730.5,4.560496]
[1740232097650,3.46021927,2730.9,2730.6,3.66212]
[1740232099454,3.0,2730.8,2730.5,0.898246]
[1740232099646,3.0,2730.8,2730.4,8.98236]
[1740232099851,3.0,2730.8,2730.4,5.32]
[1740232100154,0.7629,2730.7,2730.4,5.32]
[1740232100354,6.66198,2730.8,2730.4,5.32]
[1740232100355,3.0,2730.8,2730.4,8.98246]
[1740232100527,3.0,2730.8,2730.6,3.66219]
[1740232101137,3.46021927,2730.9,2730.7,3.66206]
[1740232101336,3.46021927,2730.9,2730.6,5.721375]
[1740232102739,3.46021927,2730.9,2730.7,0.09247953]
[1740232103658,3.0,2731.1,2730.8,3.66193]
[1740232103856,3.0,2731.1,2730.9,3.66176]
[1740232104063,3.0,2731.1,2730.9,3.75079528]
[1740232104429,3.0,2731.1,2731.0,3.66166]
[1740232104830,3.0,2731.1,2731.0,3.75066458]
[1740232105764,3.46021927,2731.5,2731.2,3.66126]
[1740232105965,0.7629,2731.7,2731.2,3.66126]
[1740232106134,3.46021927,2731.8,2731.5,3.66091]
[1740232106496,4.42362,2731.7,2731.6,0.0886148]
[1740232106662,8.21200393,2731.7,2731.6,0.0886148]
[1740232106854,3.66115,2731.4,2731.1,5.32]
[1740232107061,3.46021927,2731.3,2731.1,5.32]
[1740232108873,3.46021927,2731.3,2731.2,3.66139]
[1740232109367,3.46021927,2731.3,2731.1,8.98143]
[1740232109545,3.46021927,2731.6,2731.3,3.66113]
[1740232109740,3.46021927,2731.6,2731.4,3.6611]
[1740232110470,3.46021927,2731.9,2731.5,3.66099]
[1740232114474,3.8281,2732.0,2731.7,3.66063]
[1740232114475,3.46021927,2732.0,2731.7,3.66063]
[1740232114649,3.46021927,2732.0,2731.6,0.8135]
[1740232114850,6.46021927,2732.0,2731.6,0.8135]
[1740232115047,6.66048,2731.9,2731.5,5.32]
[1740232117372,3.0,2731.9,2731.5,5.32]
[1740232117582,3.0,2731.9,2731.5,9.960437]
[1740232117781,3.0,2731.9,2731.6,0.08730294]
[1740232119886,6.66053,2731.9,2731.6,0.08730294]
[1740232120094,4.25061927,2731.7,2731.6,0.08730294]
[1740232120260,7.91133927,2731.7,2731.6,0.08730294]
[1740232120792,3.66092,2731.6,2731.3,5.32]
[1740232120988,7.12133927,2731.4,2731.3,5.32]
[1740232121552,3.46021927,2731.4,2731.3,5.32]
[1740232125289,3.0,2731.6,2731.3,5.32]
[1740232125497,3.0,2731.6,2731.3,6.1529]
[1740232125691,3.0,2731.6,2731.3,5.32]
[1740232125864,0.7547,2731.5,2731.3,5.32]
[1740232126066,3.46021927,2731.4,2731.0,6.1529]
[1740232126281,3.46021927,2731.4,2731.0,7.20345156]
[1740232126595,3.0,2731.6,2731.0,10.86500156]
[1740232127380,3.0,2731.6,2731.0,7.20345156]
[1740232127584,6.66094,2731.6,2731.0,7.20345156]
[1740232128359,3.66106,2731.5,2731.0,7.20345156]
[1740232128558,6.66094,2731.6,2731.0,7.20345156]
[1740232128792,10.32189,2731.6,2731.0,7.20345156]
[1740232129026,3.66116,2731.4,2731.0,7.20345156]
[1740232129494,3.66133,2731.3,2731.0,7.20345156]
[1740232129898,3.66133,2731.3,2731.0,6.37055156]
[1740232130813,3.66179,2730.9,2730.7,5.32]
[1740232130992,7.12177927,2731.1,2730.4,0.8169]
[1740232131363,3.66167,2731.0,2730.4,0.8169]
[1740232132494,3.6618,2730.9,2730.4,0.8169]
[1740232132697,3.6618,2730.9,2730.5,0.08800273]
[1740232132998,10.78340927,2731.1,2730.5,0.08800273]
[1740232133300,7.12177927,2731.1,2730.5,0.08800273]
[1740232133499,3.66167,2731.0,2730.5,0.08800273]
[1740232133791,3.66219,2730.6,2730.5,0.08800273]
[1740232134193,6.66219,2730.6,2730.3,5.32]
[1740232134398,4.47366,2730.4,2730.3,5.32]
[1740232134710,0.8112,2730.4,2730.3,5.32]
[1740232134878,6.46021927,2730.5,2730.3,5.32]
[1740232135200,3.66246,2730.4,2730.3,5.32]
[1740232135602,3.66283,2730.2,2729.6,0.8077]
[1740232135777,3.66283,2730.2,2729.6,6.67328773]
[1740232136876,0.8112,2730.3,2729.6,6.67328773]
[1740232137079,3.0,2730.4,2729.7,3.66331]
[1740232137473,3.0,2730.4,2729.8,3.66326]
[1740232137671,3.0,2730.4,2730.0,0.8077]
[1740232138273,6.66248,2730.4,2730.0,0.8077]
[1740232139105,3.0,2730.4,2730.0,0.8077]
[1740232139598,4.27141927,2730.5,2730.0,0.8077]
[1740232140169,3.0,2730.4,2730.0,6.1277]
[1740232140371,4.27141927,2730.5,2730.0,6.1277]
[1740232140596,3.66256,2730.4,2730.0,5.32]
[1740232141403,3.46021927,2730.5,2730.0,5.32]
[1740232141700,3.46021927,2730.8,2730.1,0.7886]
[1740232141904,6.46021927,2730.8,2730.1,9.77138]
[1740232142102,6.46021927,2730.8,2730.2,0.977138]
[1740232142421,16.46306,2731.5,2730.4,0.7886]
[1740232142422,4.25691927,2731.1,2730.4,0.7886]
[1740232142627,7.91844927,2731.1,2730.4,0.7886]
[1740232143100,4.25691927,2731.1,2730.5,3.66233]
[1740232143310,3.0,2731.0,2730.5,3.66233]
[1740232143467,3.66131,2731.3,2730.5,3.66233]
[1740232143468,3.0,2731.2,2730.7,0.7847]
[1740232143672,3.0,2731.2,2730.7,6.1047]
[1740232144290,3.46021927,2731.3,2730.7,6.1047]
[1740232144504,3.46021927,2731.3,2730.7,9.76675]
[1740232144918,3.0,2731.2,2730.7,6.1047]
[1740232145281,3.46021927,2731.3,2730.7,7.14679043]
[1740232145475,3.46021927,2731.3,2730.7,10.80882043]
[1740232145700,3.46021927,2731.3,2730.9,0.7847]
[1740232147015,3.46021927,2731.3,2730.9,6.1047]
[1740232147711,3.66159,2731.1,2731.0,0.08893607]
[1740232150275,7.12153927,2731.3,2731.0,0.08893607]
[1740232150589,3.46021927,2731.6,2731.1,0.7847]
[1740232150989,3.0,2731.5,2731.2,0.08832628]
[1740232151216,6.66102,2731.5,2731.2,0.08832628]
[1740232152810,3.0,2731.5,2731.2,0.08832628]
[1740232154320,6.66103,2731.5,2731.2,0.08832628]
[1740232155393,10.32211,2731.5,2731.2,0.08832628]
[1740232155827,6.66103,2731.5,2731.2,0.08832628]
[1740232156129,10.32211,2731.5,2731.2,0.08832628]
[1740232156430,6.66103,2731.5,2731.2,0.08832628]
[1740232156926,10.3221,2731.5,2731.2,0.08832628]
[1740232157242,6.66103,2731.5,2731.2,0.08832628]
[1740232157447,3.0,2731.5,2731.2,0.08832628]
[1740232160746,3.0,2731.5,2731.2,0.54178991]
[1740232161056,3.0,2731.5,2731.2,0.08832628]
[1740232161349,3.46021927,2731.6,2731.3,0.8313]
[1740232161713,3.46021927,2731.6,2731.4,0.08786352]
[1740232163448,3.66099,2731.5,2731.4,0.08786352]
[1740232164402,6.66099,2731.5,2731.4,0.08786352]
[1740232164712,8.11552693,2731.5,2731.4,0.08786352]
[1740232164913,3.6614,2731.2,2730.9,6.1247]
[1740232165430,3.66166,2731.0,2730.9,5.32]
[1740232165732,3.6614,2731.2,2730.9,5.32]
[1740232166504,7.32288,2731.2,2730.9,5.32]
[1740232166924,3.6614,2731.2,2730.9,5.32]
[1740232167118,3.46021927,2731.3,2730.9,5.32]
[1740232167325,3.46021927,2731.3,2730.9,5.95897]
[1740232168755,3.46021927,2731.3,2730.7,0.8047]
[1740232168954,3.66139,2731.2,2730.7,0.8047]
[1740232169155,3.46021927,2731.0,2730.5,5.32]
[1740232169324,3.6619,2730.9,2730.5,5.32]
[1740232169523,7.32381,2730.9,2730.5,5.32]
[1740232169976,3.66195,2730.8,2730.5,5.32]
[1740232170174,3.66195,2730.8,2730.5,6.29397]
[1740232170466,3.46021927,2731.0,2730.5,6.29397]
[1740232170653,3.66182,2730.9,2730.5,6.29397]
[1740232171961,3.46021927,2731.0,2730.5,6.29397]
[1740232172130,7.12188927,2731.0,2730.5,6.29397]
[1740232173445,3.0,2731.2,2730.7,0.7939]
[1740232173647,3.46021927,2731.0,2730.7,0.7939]
[1740232173959,3.66193,2730.8,2730.6,0.709867]
[1740232174178,3.66206,2730.7,2730.5,7.08787]
[1740232174487,7.32396,2730.8,2730.5,6.1139]
[1740232174629,3.66219,2730.6,2730.5,5.32]
[1740232174830,7.12230927,2730.7,2730.1,0.7939]
[1740232175060,3.46021927,2730.7,2730.1,9.77672]
[1740232175264,3.46021927,2730.7,2730.2,1.343962]
[1740232175441,3.66241,2730.5,2730.1,6.1139]
[1740232175842,7.12235927,2730.7,2730.1,6.1139]
[1740232176838,3.66224,2730.6,2730.1,6.1139]
[1740232177038,7.32453,2730.6,2730.1,6.1139]
[1740232177241,3.66224,2730.6,2730.1,6.1139]
[1740232177436,3.66224,2730.6,2730.2,0.61139]
[1740232177637,3.66236,2730.5,2730.2,0.68836097]
[1740232177881,3.6626,2730.3,2730.2,0.07697097]
[1740232178376,3.66292,2730.1,2729.9,5.32]
[1740232179474,3.6626,2730.3,2729.9,5.32]
[1740232179772,3.46021927,2730.4,2729.9,5.32]
[1740232179977,7.12234927,2730.7,2730.0,0.7858]
[1740232180267,3.0,2730.5,2730.0,7.082702]
[1740232181154,6.66233,2730.5,2730.0,7.082702]
[1740232182683,3.0,2730.5,2730.0,7.082702]
[1740232183294,3.0,2730.5,2730.1,0.7858]
[1740232183766,4.22191927,2730.8,2730.1,4.44864]
[1740232183973,3.46021927,2730.8,2730.3,0.7858]
[1740232184282,3.0,2730.7,2730.3,4.44836]
[1740232184485,0.7617,2731.0,2730.3,4.44836]
[1740232184882,3.46021927,2731.1,2730.4,4.44817]
[1740232185070,3.66169,2731.0,2730.4,0.7858]
[1740232185274,3.0,2730.8,2730.4,0.7858]
[1740232185474,3.0,2730.8,2730.4,6.1058]
[1740232185881,6.66194,2730.8,2730.4,6.1058]
[1740232186380,3.0,2730.9,2730.4,6.1058]
[1740232186583,6.66179,2730.9,2730.4,6.1058]
[1740232192416,6.66179,2730.9,2730.4,7.22673732]
[1740232192590,6.66179,2730.9,2730.5,0.07745466]
[1740232193087,3.0,2730.9,2730.5,0.07745466]
[1740232194183,6.6618,2730.9,2730.5,0.07745466]
[1740232196491,3.0,2730.9,2730.5,0.07745466]
[1740232196695,3.0,2730.9,2730.5,1.0575733]
[1740232197490,3.0,2731.0,2730.5,1.0575733]
[1740232198498,6.66169,2731.0,2730.5,1.0575733]
[1740232199402,3.66181,2730.9,2730.5,0.07745466]
[1740232200438,6.66168,2731.0,2730.5,0.07745466]
[1740232201414,3.0,2731.0,2730.5,5.39745466]
[1740232201615,6.66169,2731.0,2730.5,5.39745466]
[1740232202121,3.0,2731.0,2730.5,5.39745466]
[1740232202327,6.66166,2731.0,2730.5,6.40851313]
[1740232203190,6.66166,2731.0,2730.6,0.7572]
[1740232203527,6.66166,2731.0,2730.7,0.07727611]
[1740232203825,3.0,2731.0,2730.7,0.07727611]
[1740232205007,3.46021927,2731.6,2730.9,3.66168]
[1740232205211,3.66099,2731.5,2731.0,0.07718401]
[1740232205467,3.46021927,2731.6,2731.0,3.73883401]
[1740232205613,3.46021927,2731.6,2731.1,0.7572]
[1740232205950,3.0,2731.5,2731.2,0.07694695]
[1740232208044,3.66072,2731.7,2731.2,0.07694695]
[1740232208219,3.66072,2731.7,2731.3,0.8107]
[1740232208425,3.0,2731.6,2731.4,0.07604639]
[1740232215424,3.46021927,2731.8,2731.4,0.07604639]
[1740232215752,3.46021927,2731.8,2731.5,0.45479964]
[1740232215956,3.46021927,2731.8,2731.5,5.77479964]
[1740232216253,3.46021927,2731.8,2731.6,0.07597527]
[1740232217351,3.0,2731.8,2731.6,0.07597527]
[1740232217553,3.46021927,2732.2,2731.7,0.8107]
[1740232217755,3.46021927,2732.2,2731.8,0.45475053]
[1740232217930,7.12030927,2732.2,2731.8,0.52964996]
[1740232219282,3.46021927,2732.2,2731.8,0.52964996]
[1740232219774,3.46021927,2732.5,2731.9,1.3607]
[1740232219975,3.66001,2732.3,2732.0,0.189035]
[1740232220171,3.0,2732.2,2732.0,0.26362929]
[1740232220661,3.0,2732.3,2732.0,0.26362929]
[1740232221153,3.0,2732.3,2732.0,5.58362929]
[1740232221922,3.46021927,2732.2,2732.0,5.39459429]
[1740232222121,3.66018,2732.1,2732.0,5.39459429]
[1740232222659,6.66018,2732.1,2732.0,5.39459429]
[1740232227262,6.66018,2732.1,2732.0,0.07459429]
[1740232227666,3.0,2732.1,2731.6,0.8107]
[1740232227857,3.66068,2731.8,2731.6,0.8107]
[1740232228046,7.32138,2731.8,2731.6,0.8107]
[1740232228249,3.0,2732.1,2731.7,0.55]
[1740232228449,3.6604,2732.0,2731.6,0.8107]
[1740232228746,3.66068,2731.8,2731.6,1.257881]
[1740232228952,3.66099,2731.5,2731.4,0.7863]
[1740232229340,3.66087,2731.6,2731.4,0.7863]
[1740232229540,7.32183,2731.6,2731.4,0.7863]
[1740232229752,3.66087,2731.6,2731.4,0.7863]
[1740232229950,3.66099,2731.5,2731.4,1.39693]
[1740232231379,3.66039,2732.0,2731.5,0.7863]
[1740232231578,3.0,2732.0,2731.5,0.7863]
[1740232231747,3.6607,2731.8,2731.5,1.457993]
[1740232232778,3.66039,2732.0,2731.5,1.457993]
[1740232232981,3.66057,2731.9,2731.6,0.7863]
[1740232233679,6.66014,2732.2,2731.6,0.7863]
[1740232233977,6.66014,2732.2,2731.5,4.332563]
[1740232233978,6.66014,2732.2,2731.8,0.7863]
[1740232234149,6.66014,2732.2,2731.9,0.499699]
[1740232234758,3.66039,2732.0,2731.8,0.7863]
[1740232234975,7.32082,2732.0,2731.8,0.7863]
[1740232235471,3.66045,2731.9,2731.6,1.06031427]
[1740232235672,3.66029,2732.1,2731.6,1.06031427]
[1740232235872,3.66029,2732.1,2731.7,0.53929573]
[1740232236379,3.66028,2732.1,2731.7,0.53929573]
[1740232237081,6.66016,2732.2,2731.7,0.53929573]
[1740232237585,6.66016,2732.2,2731.7,0.81354511]
[1740232237885,10.32028,2732.2,2731.8,0.11563075]
[1740232238057,6.66014,2732.2,2731.8,0.11563075]
[1740232238384,6.66014,2732.2,2731.8,0.53763059]
[1740232238686,6.66014,2732.2,2731.9,0.11559858]
[1740232239180,3.0,2732.2,2732.0,0.7863]
[1740232239553,3.0,2732.2,2732.1,0.11543673]
[1740232239752,3.0,2732.3,2732.1,0.11543673]
[1740232242148,7.88609927,2732.6,2732.1,0.11543673]
[1740232242149,3.65967,2732.5,2732.1,0.11543673]
[1740232242356,3.65967,2732.5,2732.1,0.61084965]
[1740232242693,7.11979927,2732.6,2732.1,0.61084965]
[1740232242987,3.0,2732.5,2732.1,0.61084965]
[1740232243459,3.0,2732.5,2732.1,4.27098965]
[1740232243785,3.65933,2732.8,2732.2,1.3038]
[1740232243995,3.46021927,2732.8,2732.4,3.65975]
[1740232244154,0.8279,2733.1,2732.5,0.7538]
[1740232244155,4.28811927,2733.1,2732.5,0.7538]
[1740232244356,3.65926,2732.8,2732.5,0.86867905]
[1740232245195,3.65919,2732.9,2732.5,0.86867905]
[1740232245489,3.65919,2732.9,2732.5,1.92587945]
[1740232246064,6.65906,2733.0,2732.5,1.92587945]
[1740232246583,6.65906,2733.0,2732.5,2.2685443]
[1740232247799,3.65912,2732.9,2732.5,1.92587945]
[1740232248001,3.65912,2732.9,2732.6,0.72458795]
[1740232248313,3.65912,2732.9,2732.7,0.11382925]
[1740232248510,3.0,2733.0,2732.7,0.11382925]
[1740232248853,6.659,2733.0,2732.7,0.11382925]
[1740232249553,3.0,2733.0,2732.7,0.11382925]
[1740232249785,3.65914,2732.9,2732.7,0.11382925]
[1740232249992,3.65925,2732.8,2732.7,0.11382925]
[1740232250298,4.43874,2732.9,2732.5,0.7538]
[1740232250484,3.65938,2732.7,2732.5,1.4600265]
[1740232250992,3.65951,2732.6,2732.5,1.4600265]
[1740232251493,3.65938,2732.7,2732.5,1.4600265]
[1740232252790,3.65938,2732.7,2732.6,0.1139686]
[1740232253199,6.65938,2732.7,2732.6,0.1139686]
[1740232253493,4.45584493,2732.7,2732.2,0.8294]
[1740232253698,3.65979,2732.4,2732.2,0.8294]
[1740232253855,3.65979,2732.4,2732.3,0.1140456]
[1740232257195,3.65934,2732.8,2732.3,0.1140456]
[1740232257500,3.65934,2732.8,2732.4,0.7982]
[1740232257919,3.65934,2732.8,2732.5,0.11402997]
[1740232258272,3.65934,2732.8,2732.5,0.57124397]
[1740232258474,3.65902,2733.0,2732.5,0.57124397]
[1740232258475,3.65911,2732.9,2732.5,0.57124397]
[1740232258863,6.65911,2732.9,2732.5,0.57124397]
[1740232259270,3.0,2732.9,2732.5,0.57124397]
[1740232259503,3.65926,2732.8,2732.5,0.57124397]
[1740232261204,3.0,2732.9,2732.5,5.89124397]
[1740232261405,3.0,2732.9,2732.7,0.7982]
[1740232261773,7.11868927,2733.4,2732.8,0.11376782]
[1740232261972,3.65858,2733.3,2732.8,0.11376782]
[1740232262203,3.0,2733.2,2732.8,0.11376782]
[1740232262405,3.46021927,2733.4,2733.0,0.7982]
[1740232262702,7.31654,2733.6,2733.1,0.11295989]
[1740232262902,3.65825,2733.6,2733.1,0.11295989]
[1740232263225,3.65836,2733.5,2733.1,0.11295989]
[1740232263503,3.65836,2733.5,2733.1,0.59647588]
[1740232264604,7.11846927,2733.6,2733.1,0.59647588]
[1740232264605,3.65845,2733.4,2733.1,0.59647588]
[1740232264787,3.65871,2733.2,2733.1,0.11295989]
[1740232264987,3.65884,2733.1,2733.0,0.11712504]
[1740232265171,7.31754,2733.2,2733.0,0.11712504]
[1740232265502,3.65884,2733.1,2733.0,0.2296299]
[1740232266980,3.65884,2733.1,2733.0,0.11250486]
[1740232267181,3.65904,2733.0,2732.7,0.2737245]
[1740232267611,7.3178,2733.1,2732.7,0.2737245]
[1740232267816,3.65899,2733.0,2732.8,0.11177989]
[1740232268906,3.65884,2733.1,2732.8,0.11177989]
[1740232269076,3.65911,2732.9,2732.8,0.11177989]
[1740232270481,3.65911,2732.9,2732.6,0.27388535]
[1740232270809,3.65938,2732.7,2732.6,0.27388535]
[1740232270996,3.65938,2732.7,2732.6,0.66607854]
[1740232271401,3.65925,2732.8,2732.6,0.66607854]
[1740232272029,3.65938,2732.7,2732.6,0.66607854]
[1740232273533,3.65938,2732.7,2732.6,0.11734422]
[1740232275427,3.65938,2732.7,2732.4,0.265]
[1740232275822,3.65954,2732.6,2732.4,0.265]
[1740232276652,3.65925,2732.8,2732.4,0.265]
[1740232276867,3.65939,2732.7,2732.4,0.265]
[1740232277179,3.65925,2732.8,2732.4,0.265]
[1740232277380,3.65925,2732.8,2732.5,0.49040033]
[1740232277530,3.65925,2732.8,2732.5,0.60776613]
[1740232278272,3.65912,2732.9,2732.5,0.60776613]
[1740232278457,7.11926927,2733.0,2732.5,0.60776613]
[1740232278659,3.65905,2733.0,2732.5,0.60776613]
[1740232279025,3.0,2733.1,2732.6,0.9138658]
[1740232279223,3.0,2733.1,2732.6,0.1173658]
[1740232279224,3.65898,2733.0,2732.6,0.1173658]
[1740232279456,4.44459,2732.9,2732.6,0.1173658]
[1740232280622,3.65919,2732.9,2732.6,0.1173658]
[1740232280827,3.0,2733.0,2732.5,3.65963]
[1740232281125,5.32,2733.5,2732.7,0.7965]
[1740232281344,3.65865,2733.3,2732.7,0.7965]
[1740232281527,3.0,2733.2,2732.7,0.7965]
[1740232281871,3.0,2733.3,2732.7,0.7965]
[1740232282066,6.65858,2733.3,2732.8,0.27418424]
[1740232282235,3.65872,2733.2,2732.8,0.9909734]
[1740232282563,3.65872,2733.2,2732.8,1.10832109]
[1740232282758,3.65872,2733.2,2732.9,0.11214719]
[1740232283061,6.65859,2733.3,2732.9,0.11214719]
[1740232284654,6.65859,2733.3,2733.0,0.787]
[1740232285074,3.0,2733.3,2733.1,0.11208289]
[1740232285380,6.65871,2733.2,2733.1,0.11208289]
[1740232285580,6.65871,2733.2,2732.8,1.50378916]
[1740232285877,6.65871,2733.2,2733.1,0.11208289]
[1740232286473,3.0,2733.2,2732.9,0.11736758]
[1740232286672,3.0,2733.2,2733.1,0.11208289]
[1740232286843,3.0,2733.2,2733.0,0.11211504]
[1740232287046,3.0,2733.2,2733.1,0.11208289]
[1740232287469,3.0,2733.2,2732.9,0.11736758]
[1740232287778,3.0,2733.2,2733.0,0.11211504]
[1740232287980,3.0,2733.2,2732.8,1.50378916]
[1740232288141,3.0,2733.2,2733.1,0.11208289]
[1740232288345,3.0,2733.2,2732.9,0.51630892]
[1740232288547,3.0,2733.2,2733.1,0.11208289]
[1740232288747,6.65871,2733.2,2732.9,0.51630892]
[1740232288950,6.65871,2733.2,2733.1,0.11208289]
[1740232289147,3.0,2733.2,2732.8,5.16294916]
[1740232289688,3.0,2733.2,2732.9,0.11214719]
[1740232290293,13.20116927,2734.1,2733.1,0.8247]
[1740232290449,3.6585,2733.4,2733.2,0.265]
[1740232290783,3.65858,2733.3,2733.2,0.37705074]
[1740232291364,3.6585,2733.4,2733.2,0.37705074]
[1740232291574,3.6585,2733.4,2733.2,0.49447139]
[1740232292998,3.6585,2733.4,2733.2,0.37705074]
[1740232297604,3.65858,2733.3,2733.2,0.37705074]
[1740232297958,7.42198,2733.3,2733.2,0.11205074]
[1740232298308,3.65905,2733.0,2732.6,5.585]
[1740232298459,7.31812,2733.0,2732.6,0.265]
[1740232298663,7.3176,2733.2,2732.6,0.265]
[1740232298867,7.3176,2733.2,2732.7,0.11739007]
[1740232299174,3.65877,2733.2,2732.7,0.39164117]
[1740232299559,3.65877,2733.2,2732.8,0.8247]
[1740232299963,3.7634,2733.3,2732.8,0.8247]
[1740232300166,3.0,2733.3,2732.9,0.60495419]
[1740232300380,3.65855,2733.4,2732.9,0.60495419]
[1740232300707,3.65845,2733.4,2732.9,0.60495419]
[1740232301209,3.65845,2733.4,2732.9,4.26402419]
[1740232301706,3.65845,2733.4,2733.1,0.8247]
[1740232302014,3.0,2733.5,2733.1,1.36099487]
[1740232302159,3.0,2733.5,2733.1,0.8247]
[1740232303813,3.0,2733.5,2732.9,0.67541529]
[1740232303814,3.65871,2733.2,2732.9,1.49761529]
[1740232303974,7.31751,2733.2,2732.9,1.01005117]
[1740232304318,3.65871,2733.2,2732.9,1.01005117]
[1740232304665,7.31751,2733.2,2732.9,1.01005117]
[1740232304906,7.31751,2733.2,2732.9,0.8222]
[1740232305062,3.65871,2733.2,2732.9,0.8222]
[1740232305266,7.31753,2733.2,2732.9,0.8222]
[1740232305465,3.65871,2733.2,2732.9,0.8222]
[1740232305681,3.65898,2733.0,2732.9,0.8222]
[1740232306403,3.65898,2733.0,2732.9,0.93962518]
[1740232307089,3.65898,2733.0,2732.9,1.21401692]
[1740232307736,3.65871,2733.2,2732.9,1.21401692]
[1740232307919,3.65866,2733.3,2732.9,1.21401692]
[1740232308086,3.65851,2733.4,2732.9,1.21401692]
[1740232308431,3.65851,2733.4,2732.9,1.72012073]
[1740232308739,3.0,2733.5,2733.0,3.65895]
[1740232309232,6.65831,2733.5,2733.0,3.77637518]
[1740232309435,6.65831,2733.5,2733.1,0.27439174]
[1740232309782,3.65859,2733.3,2733.1,0.27439174]
[1740232310490,3.65859,2733.3,2733.2,0.39181692]
[1740232310936,3.65846,2733.4,2733.2,0.39181692]
[1740232311834,3.65846,2733.4,2733.2,0.11742518]
[1740232312305,3.65846,2733.4,2733.0,0.18803046]
[1740232312707,3.65846,2733.4,2733.1,0.10777096]
[1740232314036,3.65872,2733.2,2732.9,1.32830381]
[1740232314233,3.65872,2733.2,2732.9,0.8222]
[1740232314842,0.7884,2733.3,2732.4,0.72469663]
[1740232315004,7.31781,2733.1,2733.0,0.39204995]
[1740232315208,3.65884,2733.1,2733.0,0.39204995]
[1740232316134,3.65884,2733.1,2733.0,0.11750935]
[1740232316422,3.65899,2733.0,2732.7,0.18805942]
[1740232317487,3.65899,2733.0,2732.8,0.11751548]
[1740232317781,3.65899,2733.0,2732.8,0.39206575]
[1740232318891,3.65899,2733.0,2732.9,0.39206575]
[1740232319883,3.65899,2733.0,2732.9,0.11751548]
[1740232320287,3.65899,2733.0,2732.9,0.22573012]
[1740232323359,3.65899,2733.0,2732.9,0.10821464]
[1740232323558,3.65925,2732.8,2732.6,0.773]
[1740232323865,3.65925,2732.8,2732.7,0.10827895]
[1740232324256,3.65925,2732.8,2732.4,1.80329663]
[1740232324445,3.65925,2732.8,2732.7,0.10827895]
[1740232324649,3.65925,2732.8,2732.4,1.80329663]
[1740232324904,0.7763,2732.9,2732.7,0.38274439]
[1740232325053,3.65902,2733.0,2732.7,0.27446544]
[1740232325375,3.65902,2733.0,2732.8,0.1082468]
[1740232325762,3.65902,2733.0,2732.8,0.22563187]
[1740232327553,3.65911,2732.9,2732.8,0.1082468]
[1740232327753,3.65911,2732.9,2732.5,0.54631866]
[1740232327998,3.65911,2732.9,2732.8,0.10829544]
[1740232328197,3.65911,2732.9,2732.6,0.60093553]
[1740232328498,3.65911,2732.9,2732.8,0.10829544]
[1740232328990,3.65902,2733.0,2732.8,0.10829544]
[1740232330003,3.65872,2733.2,2732.8,0.88239544]
[1740232330299,0.8141,2733.3,2732.8,0.88239544]
[1740232330300,3.8141,2733.3,2732.8,0.88239544]
[1740232330509,3.0,2733.3,2732.8,4.54154544]
[1740232330704,3.0,2733.3,2732.9,0.45415454]
[1740232331056,6.6586,2733.3,2732.9,0.86769956]
[1740232331674,6.6586,2733.3,2733.0,0.27440264]
[1740232331996,6.6586,2733.3,2733.1,0.10832544]
[1740232332307,3.65819,2733.6,2733.2,0.7741]
[1740232332588,3.65819,2733.6,2733.3,0.10826115]
[1740232332788,3.0,2733.5,2733.2,0.7741]
[1740232332977,3.0,2733.5,2733.4,0.10822901]
[1740232333157,3.0,2733.5,2733.2,0.7741]
[1740232333359,3.0,2733.5,2733.4,0.10822901]
[1740232333559,3.0,2733.5,2733.2,0.7741]
[1740232333794,3.0,2733.5,2733.4,0.10822901]
[1740232333955,3.0,2733.5,2733.2,1.583297]
[1740232334164,3.0,2733.5,2733.4,0.10822901]
[1740232334367,3.0,2733.5,2733.2,0.7741]
[1740232334562,3.0,2733.5,2733.4,0.10822901]
[1740232334761,3.0,2733.5,2733.2,0.7741]
[1740232334963,3.0,2733.5,2733.4,0.10822901]
[1740232335295,3.0,2733.5,2733.2,0.7741]
[1740232335497,3.0,2733.5,2733.4,0.10822901]
[1740232335963,3.0,2733.5,2733.2,0.7741]
[1740232336163,3.0,2733.5,2733.4,0.10822901]
[1740232336365,3.0,2733.5,2733.2,0.7741]
[1740232336597,3.0,2733.5,2733.4,0.10822901]
[1740232336800,3.0,2733.5,2733.2,0.7741]
[1740232336998,3.0,2733.5,2733.4,0.10822901]
[1740232337211,3.0,2733.5,2733.3,0.55155115]
[1740232337411,3.0,2733.5,2733.4,0.10822901]
[1740232337813,3.0,2733.5,2733.2,0.7741]
[1740232337981,3.0,2733.5,2733.4,0.10822901]
[1740232338181,3.0,2733.5,2733.2,0.7741]
[1740232338382,3.0,2733.5,2733.4,0.10822901]
[1740232338584,3.0,2733.5,2733.2,0.7741]
[1740232338785,3.0,2733.5,2733.4,0.10822901]
[1740232338993,3.0,2733.5,2733.2,0.7741]
[1740232339208,7.37479726,2733.5,2733.4,0.10822901]
[1740232339404,7.37479726,2733.5,2733.2,0.7741]
[1740232339614,7.37479726,2733.5,2733.4,0.10822901]
[1740232339822,7.37479726,2733.5,2733.2,0.7741]
[1740232340126,7.37479726,2733.5,2733.4,0.10822901]
[1740232340331,7.37479726,2733.5,2733.3,0.10826115]
[1740232340489,6.65831,2733.5,2733.4,0.10822901]
[1740232340939,3.65865,2733.3,2732.9,1.22825454]
[1740232341242,3.65865,2733.3,2733.0,0.10801712]
[1740232341387,3.65865,2733.3,2733.0,0.22530944]
[1740232341593,7.31732,2733.3,2733.0,0.22530944]